bitfinex/quotes_ETHUSD_20260202
["timestamp","ask_amount","ask_price","bid_price","bid_amount"]
[1770054957466,2.84189506,2360.5,2359.0,12.31970814]
[1770054958376,1.78276747,2360.5,2359.1,13.1959373]
[1770054958549,2.84187542,2360.5,2359.1,13.1959373]
[1770054958868,15.66152136,2360.5,2359.2,1.05968124]
[1770054959278,1.05914251,2360.4,2359.2,1.05968124]
[1770054959578,15.66154319,2360.5,2359.3,1.84943435]
[1770054959992,15.66154319,2360.5,2359.2,1.05968124]
[1770054960139,15.66151694,2360.5,2359.2,1.05968124]
[1770054960537,0.89668575,2360.4,2359.2,1.05968124]
[1770054960736,12.81964594,2360.3,2359.2,1.05968124]
[1770054961473,1.05923226,2360.2,2359.2,1.05968124]
[1770054961674,1.8115758,2360.1,2359.2,2.10229436]
[1770054962040,1.8115758,2360.1,2359.3,0.001]
[1770054962687,1.05923226,2360.2,2359.3,0.001]
[1770054962893,1.78276747,2360.5,2359.3,0.01377084]
[1770054963083,13.70974594,2360.8,2359.3,12.32070814]
[1770054963279,0.0011,2360.8,2359.7,1.05945671]
[1770054963682,12.82074594,2360.8,2359.7,1.05945671]
[1770054963994,0.0011,2360.8,2359.7,13.37916485]
[1770054964298,0.0011,2360.8,2360.0,0.01277084]
[1770054964459,0.0011,2360.8,2359.9,0.889]
[1770054965491,0.0011,2360.8,2360.0,1.05932203]
[1770054966966,12.82074594,2360.8,2359.9,0.889]
[1770054967290,12.82074594,2360.8,2359.7,1.05943276]
[1770054967462,13.87869872,2360.6,2359.4,1.05959142]
[1770054968076,13.87869872,2360.6,2359.3,0.889]
[1770054968375,12.81964594,2360.4,2359.3,0.001]
[1770054968589,12.81964594,2360.2,2359.0,0.001]
[1770054968783,15.72563458,2360.1,2359.0,1.05995155]
[1770054968968,15.289219,2360.0,2359.0,0.0002]
[1770054969186,0.8970096,2359.9,2359.0,1.05996689]
[1770054969383,0.8970096,2359.9,2359.1,1.05972603]
[1770054969566,1.95641569,2359.9,2359.0,0.0002]
[1770054969762,0.8978711,2359.8,2359.0,0.0002]
[1770054969967,12.81964594,2359.8,2359.0,0.0002]
[1770054970198,1.3879052,2359.7,2359.0,0.0002]
[1770054970410,1.05921906,2360.3,2359.0,0.0002]
[1770054970568,0.89822543,2360.2,2359.0,0.0002]
[1770054970768,1.05921906,2360.3,2359.0,0.0002]
[1770054971072,13.71781629,2360.2,2359.0,0.0002]
[1770054971262,12.81964594,2360.0,2359.0,0.0002]
[1770054971467,1.37178163,2359.9,2359.0,0.0002]
[1770054971784,1.05941181,2359.8,2359.0,0.0002]
[1770054972595,0.89799626,2359.7,2359.0,0.0002]
[1770054972895,13.71762033,2359.6,2359.0,0.0002]
[1770054973095,12.81964594,2359.6,2359.0,0.0002]
[1770054973303,1.28196459,2359.5,2359.0,0.0002]
[1770054973504,13.87905775,2359.8,2359.0,0.0002]
[1770054973802,13.87914755,2359.6,2359.0,0.0002]
[1770054974000,13.71720964,2359.5,2359.0,0.0002]
[1770054974299,12.81964594,2359.5,2359.0,0.0002]
[1770054975370,13.71721782,2359.4,2359.0,0.0002]
[1770054975601,1.05968124,2359.2,2359.0,0.0002]
[1770054975985,3.32039359,2359.3,2359.0,0.0002]
[1770054976187,1.37172178,2359.3,2359.0,0.0002]
[1770054976374,2.18029114,2360.1,2359.0,0.0002]
[1770054976574,0.89796923,2360.0,2359.0,0.0002]
[1770054976903,13.71759381,2359.9,2359.0,0.0002]
[1770054977073,12.81964594,2359.7,2359.0,0.0002]
[1770054977274,16.09045109,2359.6,2359.0,0.0002]
[1770054977491,0.89794787,2359.5,2359.0,0.0002]
[1770054977701,13.87928227,2359.3,2358.3,1.06008513]
[1770054977884,13.87928227,2359.3,2358.2,1.06009928]
[1770054977885,13.71727662,2359.2,2358.2,1.06009928]
[1770054978092,12.81964594,2359.2,2358.2,1.06009928]
[1770054978303,1.38792823,2359.1,2358.3,1.0600596]
[1770054979901,1.38792823,2359.1,2358.0,4.24181528]
[1770054979902,2.44767774,2359.1,2358.0,0.001]
[1770054981909,1.38792823,2359.1,2358.0,13.21548159]
[1770054982091,5.12719589,2359.5,2358.1,0.01277084]
[1770054983005,1.94854651,2359.5,2358.1,0.01277084]
[1770054983508,5.35974369,2359.8,2358.4,12.16703191]
[1770054983677,1.05948261,2359.7,2358.4,12.16703191]
[1770054983873,1.67810551,2359.7,2358.5,1.21670319]
[1770054984286,1.67810551,2359.7,2358.6,1.05995081]
[1770054984881,13.50642019,2359.6,2358.6,1.05995081]
[1770054985081,12.60885801,2359.6,2358.6,1.05995081]
[1770054986278,5.12674636,2359.8,2358.6,1.05995081]
[1770054986279,0.889,2359.8,2358.6,13.22698272]
[1770054986484,13.66801928,2360.4,2358.9,12.16703191]
[1770054986711,0.89777543,2360.3,2358.9,12.16703191]
[1770054986923,13.66801928,2360.4,2358.7,1.74668549]
[1770054986924,0.89774275,2360.2,2358.7,1.74668549]
[1770054987216,12.60885801,2360.2,2358.7,1.74668549]
[1770054988292,1.05927714,2360.1,2358.8,1.05986094]
[1770054988485,1.79050905,2360.1,2358.9,12.87163093]
[1770054988685,1.05925893,2360.2,2358.9,12.87163093]
[1770054988886,13.66811694,2360.2,2358.9,0.70459902]
[1770054989126,13.50644276,2360.1,2358.8,1.05986094]
[1770054989295,0.0011,2359.4,2358.8,1.05986094]
[1770054990516,0.0011,2359.4,2358.7,5.98612927]
[1770054990517,0.0011,2359.4,2358.7,1.05987313]
[1770054990688,0.0011,2359.4,2358.2,0.89]
[1770054991032,0.0011,2359.4,2358.7,1.05990443]
[1770054991717,0.0011,2359.4,2358.6,1.059922]
[1770054991894,0.0011,2359.4,2358.6,1.05991143]
[1770054992307,0.0011,2359.4,2358.7,1.05990226]
[1770054992524,0.0011,2359.4,2358.3,4.24034218]
[1770054992720,1.79197906,2359.4,2358.3,5.28341922]
[1770054992956,14.40083707,2359.4,2358.3,4.24034218]
[1770054993512,1.79197906,2359.4,2358.3,16.39460325]
[1770054993840,0.0011,2359.4,2358.3,16.39460325]
[1770054994624,12.60995801,2359.4,2358.3,4.24034218]
[1770054995436,0.90030162,2359.3,2358.3,4.24034218]
[1770054995747,12.60995801,2359.4,2358.3,4.24034218]
[1770054995954,0.90030583,2359.3,2358.3,4.24034218]
[1770054996127,1.35102638,2359.2,2358.3,5.28469631]
[1770054997526,1.35102638,2359.2,2358.3,4.24034218]
[1770054998762,1.35102638,2359.2,2358.2,1.9501173]
[1770054998763,13.5104002,2359.1,2358.2,1.9501173]
[1770054998931,0.90154219,2359.0,2358.2,1.9501173]
[1770054999126,0.90154219,2358.9,2358.2,1.9501173]
[1770054999368,12.60885801,2359.1,2358.2,1.9501173]
[1770054999566,2.51546893,2359.0,2358.2,1.9501173]
[1770054999867,0.90131085,2358.9,2358.2,1.9501173]
[1770055000769,1.96115305,2358.9,2358.2,1.9501173]
[1770055000976,0.90126822,2358.8,2358.2,0.89]
[1770055001142,14.96712307,2358.7,2358.0,1.06121918]
[1770055001337,13.51012623,2358.6,2358.0,0.001]
[1770055001532,1.45699684,2358.7,2358.1,1.06015641]
[1770055001733,0.90141048,2358.6,2358.0,0.001]
[1770055001938,0.23584073,2358.5,2357.7,1.06032419]
[1770055002336,12.84469874,2358.5,2357.7,1.0603376]
[1770055002837,1.0600407,2358.4,2357.6,1.0604004]
[1770055003174,0.90141591,2358.3,2357.5,1.94941027]
[1770055003385,13.66889871,2358.4,2357.5,1.94941027]
[1770055003551,1.81448035,2358.3,2357.5,1.94941027]
[1770055004247,1.29587125,2358.5,2357.5,1.94941027]
[1770055004435,0.90069627,2358.4,2357.5,1.94941027]
[1770055004636,1.29587125,2358.5,2357.5,1.94941027]
[1770055004986,0.90071088,2358.4,2357.5,1.94941027]
[1770055005288,1.29587125,2358.5,2357.5,1.94941027]
[1770055005471,1.45366664,2358.4,2357.5,1.94941027]
[1770055005671,0.55357425,2358.4,2357.5,14.10367134]
[1770055005841,1.05989599,2358.8,2357.7,0.01277084]
[1770055006040,0.89982001,2358.7,2357.7,0.01277084]
[1770055006244,13.50867802,2358.6,2357.5,1.94941027]
[1770055006486,12.60885801,2358.4,2357.5,1.06041027]
[1770055006774,12.60885801,2358.4,2357.2,0.001]
[1770055006775,14.8592341,2358.3,2357.2,0.001]
[1770055006945,13.95972581,2358.3,2357.3,1.06050313]
[1770055007145,13.66903357,2358.1,2357.2,0.001]
[1770055008008,12.60885801,2357.9,2357.2,0.001]
[1770055008302,1.06017556,2358.1,2357.2,0.001]
[1770055008473,1.79097358,2358.0,2357.2,0.001]
[1770055008865,13.85474976,2358.0,2357.2,0.001]
[1770055009377,13.12404167,2357.9,2357.2,0.001]
[1770055010200,2.85122756,2358.0,2357.2,0.001]
[1770055012534,1.79097358,2358.0,2357.2,0.001]
[1770055012687,12.88179078,2358.2,2357.2,0.001]
[1770055012688,12.88177932,2358.2,2357.2,0.001]
[1770055015085,12.88177932,2358.2,2357.4,0.001]
[1770055015409,0.0011,2357.9,2357.4,0.001]
[1770055019615,11.82274249,2357.9,2357.4,0.001]
[1770055019812,1.18227425,2357.8,2357.4,0.001]
[1770055021617,11.82274249,2357.9,2357.4,0.001]
[1770055021618,0.0011,2357.9,2357.4,0.001]
[1770055022704,1.061379,2357.9,2357.4,0.001]
[1770055023305,0.0011,2357.9,2357.4,0.001]
[1770055024934,11.82164249,2357.7,2357.1,0.001]
[1770055025334,11.82164249,2357.7,2357.0,0.001]
[1770055025636,13.09270674,2357.6,2357.0,0.001]
[1770055025837,1.27106425,2357.6,2357.0,0.001]
[1770055026036,0.0011,2357.9,2357.0,0.001]
[1770055026436,1.06137709,2357.9,2357.0,0.001]
[1770055026636,0.0011,2357.9,2357.0,0.001]
[1770055027040,1.06136875,2357.9,2357.0,0.001]
[1770055027239,1.06136875,2357.9,2357.0,1.28712186]
[1770055027444,0.0011,2357.9,2357.0,1.28712186]
[1770055027954,0.0011,2357.9,2357.1,1.06062534]
[1770055029061,0.0011,2357.9,2357.2,0.001]
[1770055032247,0.9007064,2357.8,2357.2,0.001]
[1770055032552,0.0011,2357.9,2357.2,0.001]
[1770055032741,0.64361309,2357.9,2357.2,0.001]
[1770055032924,0.0011,2357.9,2357.2,0.001]
[1770055033248,0.90075101,2357.8,2357.2,0.001]
[1770055033440,0.0011,2357.9,2357.2,0.001]
[1770055033635,0.90086846,2357.8,2357.2,0.001]
[1770055033841,0.0011,2357.9,2357.2,0.001]
[1770055034235,0.90082781,2357.8,2357.2,0.001]
[1770055034550,0.0011,2357.9,2357.2,0.66012486]
[1770055035052,0.90093083,2357.8,2357.2,0.66012486]
[1770055035251,0.0011,2357.9,2357.2,0.66012486]
[1770055035451,0.90096448,2357.8,2357.2,0.66012486]
[1770055035669,0.0011,2357.9,2357.2,0.66012486]
[1770055035852,1.12199733,2358.7,2357.9,0.01277084]
[1770055036053,12.8814609,2358.9,2357.8,0.889]
[1770055036358,11.82164249,2358.7,2357.9,1.06026549]
[1770055036525,0.90139758,2358.6,2357.9,1.06026549]
[1770055036723,0.90091785,2358.5,2357.9,1.06026549]
[1770055036926,11.82164249,2358.5,2357.9,1.06026549]
[1770055037326,14.28198571,2358.8,2357.9,1.06026549]
[1770055037559,2.9538081,2358.7,2357.9,1.06026549]
[1770055037749,12.72221974,2358.6,2357.9,1.06026549]
[1770055037955,12.72221974,2358.5,2357.8,1.94928008]
[1770055038158,11.82164249,2358.3,2357.2,0.001]
[1770055038359,13.78232668,2358.2,2357.2,0.001]
[1770055038578,11.82164249,2358.0,2357.2,0.001]
[1770055038949,0.90017835,2357.9,2357.2,0.001]
[1770055039160,12.88173073,2358.3,2357.2,0.001]
[1770055039360,14.00372806,2358.3,2357.2,0.001]
[1770055039775,12.94363982,2358.3,2357.2,0.001]
[1770055039962,1.29436398,2358.2,2357.2,0.62042222]
[1770055041280,1.29436398,2358.2,2357.3,1.06053535]
[1770055044272,11.82164249,2358.3,2357.3,1.06053535]
[1770055045242,2.01209733,2358.5,2357.3,1.06053535]
[1770055045466,14.44102323,2358.5,2357.3,1.06053535]
[1770055046152,1.12309733,2358.5,2357.3,13.43889456]
[1770055046452,0.0011,2358.5,2357.3,13.43889456]
[1770055046651,0.0011,2358.5,2357.4,1.83142291]
[1770055046853,0.0011,2358.5,2357.4,12.37835921]
[1770055047271,0.0011,2358.5,2357.5,1.06044538]
[1770055048874,12.4300259,2358.5,2357.5,1.06044538]
[1770055049873,0.0011,2358.5,2357.6,12.37835921]
[1770055050053,0.0011,2358.5,2357.2,0.62042222]
[1770055050054,12.4289259,2358.4,2357.2,0.62042222]
[1770055050255,12.4289259,2358.2,2357.3,1.06053535]
[1770055050665,1.12199733,2358.3,2357.3,1.06053535]
[1770055050874,13.55092323,2358.4,2357.3,1.06053535]
[1770055051175,12.4289259,2358.2,2357.3,1.06053535]
[1770055051473,14.6616208,2358.1,2357.3,1.06053535]
[1770055051779,14.82197794,2358.1,2357.2,4.24314143]
[1770055052650,0.0011,2358.5,2357.6,12.37835921]
[1770055052851,12.4300259,2358.5,2357.7,0.889]
[1770055053984,12.4300259,2358.5,2357.8,1.06031045]
[1770055054276,14.20310077,2358.5,2357.8,1.06031045]
[1770055054481,0.0011,2358.5,2357.8,1.06031045]
[1770055055145,0.0011,2358.2,2357.8,1.06031045]
[1770055055577,0.0011,2358.5,2357.8,13.43866966]
[1770055055976,0.0011,2358.5,2358.0,0.01277084]
[1770055056484,0.0011,2358.5,2357.8,13.43866966]
[1770055056672,0.0011,2358.5,2357.9,1.85817004]
[1770055057685,0.0011,2358.5,2357.9,14.23652925]
[1770055057873,0.0011,2359.0,2358.4,1.0600407]
[1770055058182,0.0011,2359.0,2358.5,0.889]
[1770055059257,0.0011,2359.1,2358.5,13.26735921]
[1770055059457,0.0011,2359.2,2358.6,1.43401708]
[1770055059852,0.0011,2359.2,2358.7,0.01277084]
[1770055060151,0.0011,2359.2,2358.8,1.05986094]
[1770055062080,0.0011,2359.2,2358.7,4.23944378]
[1770055065685,0.0011,2359.2,2358.7,1.05990588]
[1770055068062,0.0011,2359.2,2358.6,4.23972344]
[1770055068264,0.0011,2359.0,2358.6,5.28260583]
[1770055068676,0.0011,2359.0,2358.6,1.04288239]
[1770055068963,0.0011,2359.0,2358.5,1.94895953]
[1770055069477,0.0011,2359.0,2358.5,1.05995953]
[1770055070267,0.0011,2359.0,2358.3,1.06008565]
[1770055071921,0.0011,2359.0,2358.5,0.01277084]
[1770055072403,0.0011,2359.0,2358.6,1.05995081]
[1770055072705,0.0011,2359.0,2358.7,1.42025249]
[1770055073771,0.0011,2359.0,2358.7,0.889]
[1770055074373,0.0011,2359.0,2358.8,1.05986094]
[1770055075265,0.0011,2359.0,2358.7,1.94889256]
[1770055075468,0.0011,2359.0,2358.7,0.889]
[1770055075692,0.0011,2359.0,2358.7,1.94890427]
[1770055077482,0.0011,2359.0,2358.7,0.889]
[1770055079505,11.71351088,2359.0,2358.3,1.06006343]
[1770055079796,11.71351088,2359.0,2358.2,4.24151845]
[1770055079797,12.88376197,2358.9,2358.2,0.001]
[1770055080298,12.88376197,2358.9,2357.5,4.24168014]
[1770055080502,12.88376197,2358.9,2357.2,0.001]
[1770055080503,11.71241088,2358.5,2357.2,0.001]
[1770055080701,11.71241088,2358.1,2357.0,0.001]
[1770055080906,11.71241088,2358.3,2357.0,0.89]
[1770055081093,2.04159419,2358.4,2358.3,0.001]
[1770055081401,11.71241088,2358.3,2357.1,0.01277084]
[1770055081603,1.17245109,2358.9,2357.8,0.01277084]
[1770055081814,0.59642714,2358.8,2357.8,0.01277084]
[1770055081973,0.59642714,2358.8,2357.6,0.889]
[1770055082314,12.30883802,2358.8,2357.8,0.01277084]
[1770055082683,12.30883802,2358.8,2357.9,1.06026549]
[1770055082904,12.30883802,2358.8,2358.0,0.53140983]
[1770055083080,13.36870599,2358.8,2358.0,0.53140983]
[1770055084703,12.30883802,2358.8,2358.1,1.06017556]
[1770055084905,13.36871606,2358.8,2358.0,0.53140983]
[1770055085107,13.36871606,2358.8,2357.6,5.13045849]
[1770055085108,11.71241088,2358.6,2357.6,0.889]
[1770055085311,11.71241088,2358.4,2357.7,1.06032174]
[1770055085680,12.60141088,2358.4,2357.4,1.06046634]
[1770055085881,12.60141088,2358.4,2357.4,1.06048427]
[1770055085882,11.71241088,2358.2,2357.4,1.06048427]
[1770055086321,11.71241088,2358.2,2357.3,1.06153051]
[1770055086512,11.71241088,2358.2,2357.4,1.06049037]
[1770055086815,12.7726314,2358.0,2357.3,0.001]
[1770055088033,12.7726314,2358.0,2357.0,0.001]
[1770055088702,12.77276631,2357.7,2357.0,0.001]
[1770055089214,12.77276631,2357.7,2356.8,0.001]
[1770055091527,0.889,2357.8,2356.8,0.001]
[1770055091733,12.77263382,2358.0,2356.9,12.05764423]
[1770055092030,1.17124109,2357.9,2357.0,1.20586442]
[1770055092329,12.88365197,2357.9,2356.8,0.001]
[1770055093017,12.77272133,2357.8,2356.8,0.001]
[1770055093403,12.77272133,2357.8,2357.0,0.001]
[1770055093913,11.71241088,2357.6,2357.0,0.001]
[1770055095137,1.06044538,2357.5,2357.0,0.001]
[1770055095432,1.7014519,2357.4,2357.0,0.001]
[1770055098533,14.47438261,2357.4,2356.8,0.001]
[1770055100446,5.13042227,2357.7,2356.8,0.001]
[1770055100744,14.0564557,2357.7,2356.8,0.001]
[1770055102650,1.17124109,2357.9,2357.0,11.89584566]
[1770055102938,12.10820027,2358.0,2356.8,11.89684566]
[1770055103107,12.10820027,2358.0,2356.9,11.9086165]
[1770055103311,13.16842431,2358.0,2356.9,11.89584566]
[1770055103734,13.16842129,2358.0,2356.9,11.89584566]
[1770055103936,13.16843225,2358.0,2356.9,11.89584566]
[1770055104139,14.90945224,2358.0,2357.0,1.18968457]
[1770055105016,14.90945224,2358.0,2357.1,1.06062534]
[1770055106038,14.90945224,2358.0,2357.0,0.001]
[1770055106239,14.90945224,2358.0,2357.0,1.06166753]
[1770055106416,12.10710027,2357.7,2357.0,1.06166753]
[1770055106618,1.21082003,2357.6,2357.0,1.06166753]
[1770055107129,13.16754565,2357.5,2356.8,0.001]
[1770055107830,13.16754565,2357.5,2356.8,1.0617583]
[1770055109241,13.16754565,2357.5,2356.8,0.001]
[1770055110247,13.16754565,2357.5,2356.6,0.001]
[1770055110417,12.10710027,2357.3,2356.2,0.001]
[1770055110619,12.10710027,2357.1,2356.2,0.001]
[1770055110935,1.78395029,2357.2,2356.2,0.001]
[1770055110936,12.10710027,2356.9,2356.2,0.001]
[1770055111135,13.16786062,2356.8,2356.2,0.001]
[1770055111349,1.74107689,2356.7,2356.2,0.001]
[1770055114341,2.80188915,2356.7,2356.2,0.001]
[1770055115871,12.10710027,2356.6,2356.0,0.001]
[1770055116051,12.10710027,2356.6,2355.8,0.001]
[1770055116252,12.10710027,2356.4,2355.8,0.001]
[1770055117871,13.16808571,2356.3,2355.8,0.001]
[1770055118447,6.87430622,2356.7,2355.8,0.001]
[1770055118448,1.74107689,2356.7,2355.8,0.001]
[1770055118649,2.80188306,2356.7,2356.0,0.001]
[1770055118880,14.90898333,2356.7,2356.0,0.001]
[1770055119175,12.10710027,2356.5,2355.5,0.001]
[1770055119868,12.10710027,2356.3,2355.5,0.001]
[1770055120069,12.99710027,2356.2,2355.5,0.001]
[1770055121191,0.89,2356.2,2355.5,0.001]
[1770055121846,1.95105197,2356.2,2355.5,0.001]
[1770055122046,1.40581522,2356.1,2355.5,0.001]
[1770055122979,3.0651017,2356.6,2355.5,11.89684566]
[1770055123278,3.9551017,2356.6,2355.5,11.89684566]
[1770055123479,2.89420631,2356.6,2355.5,11.89684566]
[1770055123788,2.89420631,2356.6,2355.7,11.89584566]
[1770055123947,2.89420631,2356.6,2355.8,1.06121062]
[1770055124150,2.89420631,2356.6,2355.8,3.20716183]
[1770055125481,0.47381114,2357.0,2355.9,11.89584566]
[1770055125694,0.47381114,2357.0,2356.2,11.89584566]
[1770055125983,0.47381114,2357.0,2356.4,11.89584566]
[1770055126183,0.0011,2357.5,2356.4,11.89584566]
[1770055126351,13.16864919,2357.5,2356.4,11.89584566]
[1770055126556,13.84812561,2357.4,2356.5,1.18752756]
[1770055126876,13.84812561,2357.4,2356.3,1.06098544]
[1770055127452,1.74102534,2357.4,2356.3,12.9568311]
[1770055127688,1.06154892,2357.5,2356.3,12.9568311]
[1770055128184,0.0011,2357.5,2356.3,12.9568311]
[1770055128479,12.10820027,2357.5,2356.3,12.9568311]
[1770055129468,0.0011,2357.5,2356.3,12.9568311]
[1770055130657,12.23755912,2357.5,2356.3,1.06098544]
[1770055130857,12.23755912,2357.5,2356.4,0.61949272]
[1770055131578,0.0011,2357.3,2356.4,12.37088217]
[1770055132698,0.0011,2357.3,2356.5,1.06089539]
[1770055132884,0.0011,2357.3,2356.5,12.81228484]
[1770055133184,0.0011,2357.3,2356.6,1.76753591]
[1770055134863,0.0011,2357.3,2356.7,1.06080536]
[1770055135063,0.0011,2357.5,2356.8,12.64138945]
[1770055135383,0.0011,2357.5,2356.8,0.89]
[1770055135684,12.23755912,2357.5,2356.8,0.89]
[1770055135864,12.23755912,2357.5,2356.8,1.68615627]
[1770055136180,0.0011,2357.5,2356.8,1.68615627]
[1770055137056,0.0011,2357.5,2356.9,1.06071534]
[1770055140268,0.0011,2357.5,2356.9,12.81210479]
[1770055140654,0.0011,2357.5,2356.0,0.001]
[1770055140655,12.23755912,2357.5,2356.0,0.001]
[1770055140959,12.23645912,2357.1,2356.0,1.06209526]
[1770055141184,12.23645912,2356.9,2356.0,0.001]
[1770055141491,12.23645912,2356.7,2355.8,0.001]
[1770055141657,12.23645912,2356.5,2355.5,1.06233817]
[1770055142003,12.23645912,2356.8,2355.6,4.25782276]
[1770055142187,1.06072008,2356.9,2355.7,0.53201685]
[1770055143387,1.06069665,2357.0,2355.7,0.53201685]
[1770055143576,2.82239792,2357.4,2355.7,0.53201685]
[1770055143577,1.22375591,2357.4,2356.0,11.75138945]
[1770055143882,0.0011,2357.5,2356.4,11.75138945]
[1770055143883,1.06155199,2357.5,2356.4,11.75138945]
[1770055144085,0.0011,2357.5,2356.5,1.06089539]
[1770055144480,0.0011,2357.1,2356.5,1.06089539]
[1770055144677,0.0011,2357.1,2356.6,0.6194477]
[1770055144879,0.0011,2357.3,2356.6,12.37083715]
[1770055145104,0.0011,2357.7,2356.8,11.76416029]
[1770055146070,0.0011,2357.7,2356.9,12.81210479]
[1770055146270,0.0011,2357.7,2357.0,2.5967737]
[1770055147270,0.0011,2357.8,2357.0,14.34816315]
[1770055147571,0.0011,2357.8,2357.0,14.36093399]
[1770055148090,0.0011,2357.8,2357.1,1.06062534]
[1770055148595,0.0011,2358.5,2357.9,0.01277084]
[1770055148797,0.0011,2358.5,2357.9,0.90277084]
[1770055148967,0.0011,2358.9,2357.9,0.90277084]
[1770055149689,0.0011,2358.9,2357.9,0.89]
[1770055150226,0.0011,2358.9,2358.0,1.06022052]
[1770055150388,0.0011,2358.9,2358.1,0.53201685]
[1770055151701,0.0011,2358.9,2358.1,12.2834063]
[1770055152003,0.0011,2358.9,2358.2,11.76416029]
[1770055152205,0.0011,2358.9,2358.3,1.06008565]
[1770055152865,0.0011,2359.4,2358.5,11.76416029]
[1770055153066,0.0011,2359.4,2358.7,11.75138945]
[1770055153292,0.0011,2359.6,2358.8,11.76416029]
[1770055154085,0.0011,2359.6,2358.7,1.05990588]
[1770055156888,0.0011,2359.4,2358.7,1.05990588]
[1770055157187,0.0011,2359.6,2358.8,11.76416029]
[1770055157529,0.0011,2360.1,2359.1,11.76416029]
[1770055157694,0.0011,2360.1,2359.2,12.64038945]
[1770055158518,0.0011,2360.1,2359.3,1.05963633]
[1770055159916,0.0011,2360.1,2359.3,12.81102578]
[1770055160512,0.0011,2360.1,2359.3,1.94863633]
[1770055160903,0.0011,2360.1,2359.3,2.84824393]
[1770055161119,0.0011,2360.1,2359.3,15.512932]
[1770055162105,0.0011,2360.1,2359.3,2.84824393]
[1770055162322,0.0011,2360.1,2359.3,1.94863633]
[1770055164325,0.0011,2360.1,2359.4,0.01277084]
[1770055164507,0.0011,2360.1,2359.3,14.6133244]
[1770055165318,0.0011,2360.1,2359.4,12.67745891]
[1770055165631,0.0011,2360.6,2359.4,12.66468807]
[1770055165924,0.0011,2360.6,2359.5,14.10908336]
[1770055166831,0.0011,2360.6,2359.6,1.05950161]
[1770055167510,0.0011,2360.6,2359.6,13.73696052]
[1770055167695,13.96547643,2361.4,2360.2,0.01277084]
[1770055167901,1.64423857,2361.3,2360.3,0.90177084]
[1770055168222,1.64423857,2361.3,2360.3,0.889]
[1770055168423,0.35483597,2361.5,2360.3,13.55368807]
[1770055168627,0.35483597,2361.5,2360.5,12.67745891]
[1770055168930,0.53029921,2361.5,2360.6,1.05905278]
[1770055169108,13.43706142,2361.5,2360.6,1.05905278]
[1770055169430,12.90676221,2361.5,2360.6,1.05905278]
[1770055169734,1.29067622,2361.4,2360.6,1.05905278]
[1770055169906,14.19743843,2361.4,2360.5,1.05909718]
[1770055170499,14.19743843,2361.4,2359.9,4.23731493]
[1770055170500,0.0011,2361.1,2360.2,4.23682314]
[1770055170693,1.05887335,2361.0,2359.6,1.05950161]
[1770055170899,12.90676221,2360.9,2359.6,1.05950161]
[1770055171202,1.05887335,2361.0,2359.6,1.05950161]
[1770055171203,12.90676221,2360.7,2359.6,1.05950161]
[1770055172317,12.90676221,2360.7,2359.5,1.94951313]
[1770055172527,12.90676221,2360.7,2359.5,0.001]
[1770055172826,12.90676221,2360.5,2359.3,0.001]
[1770055173128,12.90676221,2360.5,2359.3,0.0002]
[1770055173333,1.3965815,2360.4,2359.3,0.0002]
[1770055173633,14.30334371,2360.4,2359.3,0.0002]
[1770055174699,1.05918739,2360.3,2359.3,0.0002]
[1770055175409,14.30334371,2360.4,2359.3,0.0002]
[1770055175612,1.3965815,2360.4,2359.3,0.0002]
[1770055175935,1.05914899,2360.4,2359.3,0.0002]
[1770055177008,12.90676221,2360.5,2359.3,0.0002]
[1770055179243,13.96588806,2360.5,2359.3,0.0002]
[1770055179441,12.90676221,2360.5,2359.3,0.0002]
[1770055179605,12.90676221,2360.7,2359.3,0.0002]
[1770055179807,15.33980367,2360.6,2359.3,1.26668881]
[1770055180129,13.80353248,2360.5,2359.3,1.26668881]
[1770055180332,12.90676221,2360.5,2359.3,1.26668881]
[1770055180502,1.53623193,2360.6,2359.3,0.0002]
[1770055180503,12.90676221,2360.3,2359.3,0.0002]
[1770055182404,1.05911604,2360.5,2359.5,0.001]
[1770055182609,0.0011,2360.3,2359.5,0.001]
[1770055182918,12.90786221,2360.3,2359.5,0.001]
[1770055185010,0.0011,2360.5,2359.9,0.01277084]
[1770055185842,1.05995503,2361.1,2360.0,1.05932203]
[1770055186031,12.90676221,2361.0,2360.0,1.05932203]
[1770055186357,13.80525578,2360.9,2360.0,1.05932203]
[1770055186511,0.89849357,2360.8,2360.0,1.05932203]
[1770055186937,13.80525578,2360.8,2359.9,1.05933576]
[1770055187139,15.18578136,2360.7,2359.9,1.05933576]
[1770055187366,0.89849357,2360.6,2359.9,1.05933576]
[1770055187837,13.80525578,2360.6,2359.8,1.05937697]
[1770055188010,1.95759121,2360.5,2359.7,4.23775161]
[1770055188210,0.89849357,2360.4,2359.7,1.05945671]
[1770055188534,2.80855112,2360.4,2359.7,1.05945671]
[1770055188714,1.91005755,2360.4,2359.7,1.05945671]
[1770055190928,1.91005755,2360.4,2359.6,1.94747938]
[1770055191942,15.85132717,2360.4,2359.6,1.94747938]
[1770055192154,0.8988267,2360.3,2359.6,1.94747938]
[1770055192446,1.67501544,2360.2,2359.6,1.94747938]
[1770055193011,14.55713775,2360.2,2359.6,1.05947938]
[1770055193216,1.67501544,2360.2,2359.6,1.05947938]
[1770055193418,13.94123841,2360.5,2359.6,1.05947938]
[1770055193642,0.89916016,2360.4,2359.6,1.05947938]
[1770055193846,0.89916016,2360.3,2359.6,1.05947938]
[1770055194035,13.94123841,2360.5,2359.6,1.05947938]
[1770055194350,0.89915085,2360.4,2359.6,1.05947938]
[1770055194514,2.38318978,2360.3,2359.6,1.05947938]
[1770055194844,1.48403893,2360.3,2359.8,0.001]
[1770055195053,1.48513893,2360.3,2359.8,0.001]
[1770055195350,1.12338121,2360.1,2359.3,0.0002]
[1770055195513,0.4408374,2360.0,2359.3,0.0002]
[1770055195715,14.36726124,2360.3,2359.3,0.0002]
[1770055195920,0.89883535,2360.2,2359.3,0.0002]
[1770055196144,0.89883535,2360.1,2359.3,0.0002]
[1770055196446,15.42645417,2360.3,2359.3,0.0002]
[1770055196649,0.89877834,2360.2,2359.3,0.0002]
[1770055196947,0.89877834,2360.2,2359.3,1.82114492]
[1770055196948,0.89877834,2360.1,2359.3,1.82114492]
[1770055197250,0.89877834,2360.1,2359.4,1.05959142]
[1770055198516,14.84017877,2360.1,2359.4,1.05959142]
[1770055198750,0.89877834,2360.0,2359.4,1.05959142]
[1770055199044,0.89877834,2360.0,2359.3,0.0002]